Cogmind - Beta 15 @@@ ROGUE MODE // 2025.05.25 @ 18:55:21 Player: puppuppit Result: Destroyed by FQ-ACX(j) with Overtuned Pulse Rifle Performance ------------- Evolutions (0) 0 Regions Visited (4) 800 Robots Destroyed (69) 345 Value Destroyed (1401) 1401 Prototype IDs (29) 580 Alien Tech Used (0) 0 Bonus (806) 806 TOTAL SCORE: 3932 Bonus ------- Follower Combat Kills 36 Registered with UFD 300 Met Optimus in HQ 500 Friendly Fire -30 Cogmind --------- Core Integrity 0/250 Matter 243/300 Energy 250/250 System Corruption 0% Temperature Cool (9) Movement Walking (130) Location -9/Scraptown Parts ------- > --- POWER (1) -------- Ion Engine > --- PROPULSION (2) --- Cargo Legs > --- UTILITY (2+2) ---- Cooling System High-capacity Storage Unit 0b10 Decoder Chip [Looter] (+) > --- WEAPON (2) ------- Light Cannon Light Cannon > --- INVENTORY (20) --- Gravmag System Scrap Suit Large Storage Unit Medium Matter Pod (100) Structural Scanner Machine Analyzer IFF Parser Improved Terrain Scanner Improved Terrain Scanner Propulsion Shielding A0-MCA's Component Scanner Light Cannon Light Cannon Light Cannon Light Cannon DRS Beacon (Ready) Peak State ------------ > --- POWER ------------ Ion Engine > --- PROPULSION ------- Cargo Legs > --- UTILITY ---------- Cooling System High-capacity Storage Unit 0b10 Decoder Chip [Looter] > --- WEAPON ----------- Light Cannon Battle Cannon > --- INVENTORY -------- Subdweller Monowheel Gravmag System Scrap Suit Large Storage Unit Medium Matter Pod Structural Scanner Machine Analyzer IFF Parser Improved Terrain Scanner Improved Terrain Scanner Propulsion Shielding A0-MCA's Component Scanner Light Cannon Light Cannon Light Cannon Light Cannon Light Cannon Vortex Trap DRS Beacon [Rating: 33] Favorites ----------- Power Subdweller Power Source Engine Subdweller Power Source Power Core Light Nuclear Core Propulsion Wheel Leg Cargo Legs Wheel Wheel Utility High-capacity Storage Unit Device Structural Scanner Storage High-capacity Storage Unit Processor 0b10 Decoder Chip [Looter] Protection Propulsion Shielding Weapon Light Cannon Ballistic Gun Light Assault Rifle Ballistic Cannon Light Cannon Build | -11 -10 -10 -9 -9 ------- Run | Yrd Mat Sub Rec Scr Slots Evolved . | . . . . . Power . | . . . . . Propulsion . | . . . . . Utility . | . . . . . Weapon . | . . . . . Parts Attached 39 | 8 11 15 . 5 Power 6 | 1 1 2 . 2 Engine 5 | 1 . 2 . 2 Core 1 | . 1 . . . Reactor . | . . . . . Propulsion 11 | 3 3 5 . . Treads . | . . . . . Leg 1 | . . 1 . . Wheel 10 | 3 3 4 . . Hover . | . . . . . Flight . | . . . . . Utility 10 | 2 4 2 . 2 Device 5 | 1 3 . . 1 Storage 2 | 1 1 . . . Processor 1 | . . . . 1 Hackware . | . . . . . Protection 2 | . . 2 . . Artifact . | . . . . . Weapon 12 | 2 3 6 . 1 Energy Gun . | . . . . . Energy Cannon . | . . . . . Ballistic Gun 2 | 2 . . . . Ballistic Cannon 10 | . 3 6 . 1 Launcher . | . . . . . Special Weapon . | . . . . . Impact Weapon . | . . . . . Slashing Weapon . | . . . . . Piercing Weapon . | . . . . . Special Melee Weapon . | . . . . . Unidentified Prototypes . | . . . . . Parts Lost 9 | . . 8 . 1 Power 1 | . . 1 . . Propulsion 2 | . . 2 . . Utility 1 | . . 1 . . Weapon 5 | . . 4 . 1 Highest Loss Streak 6 | . . 6 . 1 To Critical Strikes 1 | . . 1 . . Average Backups 16 | 1 17 18 19 15 Power . | . . . 1 . Propulsion 4 | . 5 4 6 2 Utility 7 | . 7 6 6 8 Weapon 5 | . 3 5 6 5 Tool/Special . | . . . . . Unused Backups 28 | 1 7 2 . 18 Power . | . . . . . Propulsion 8 | . 2 1 . 5 Utility 16 | 1 5 1 . 9 Weapon 4 | . . . . 4 Tool/Special . | . . . . . Average Slot Usage (%) 80 | . 99 92 66 62 Engine 8 | . 5 11 11 5 Core 2 | . 8 1 . . Leg 5 | . . 1 11 11 Wheel 13 | . 28 22 . . Device 11 | . 14 11 11 11 Storage 12 | . 14 13 11 11 Ballistic Cannon 24 | . 26 26 22 21 Peak Build Rating 33 | 10 13 26 26 33 Average Rating 19 | 7 10 14 26 27 On Entrance 14 | . 10 11 26 26 Naked Turns . | . . . . . Heaviest Build 54 | 14 52 54 52 53 Greatest Support 55 | 26 20 55 55 55 Greatest Overweight (x) 17 | . 2 17 . . Average Overweight (x) . | . 1 1 . . Largest Inventory Capacity 20 | 8 20 20 20 20 Average Capacity 19 | 7 19 20 20 20 Most Carried 20 | 7 20 20 20 20 Average Carried 18 | 1 17 19 20 18 Final Capacity 20 | 8 20 20 20 20 Final Carried 20 | 7 20 20 20 17 Class Distribution -------------------- 61% | Mutant 37% | Commander-Mutant Dominant Class ---------------- Mutant | -10/Materials Mutant | -10/Subcaves Mutant | -9/Recycling Commander-Mutant | -9/Scraptown Resources | -11 -10 -10 -9 -9 ----------- Run | Yrd Mat Sub Rec Scr Matter Collected 2416 | 364 997 744 261 50 Remotely . | . . . . . Salvage Created 2370 | 257 838 306 912 57 Parts 132 | 21 56 26 27 2 Haulers Intercepted 2 | . 2 . . . Recyclers Shooed 5 | . 1 . 4 . Parts Field Recycled . | . . . . . Retrieved Matter . | . . . . . Parts Self-Destructed 15 | . . 15 . . Prevented . | . . . . . Kills | -11 -10 -10 -9 -9 ------- Run | Yrd Mat Sub Rec Scr Combat Hostiles Destroyed 31 | . 14 12 4 1 Cannons 31 | . 14 12 4 1 Classes Destroyed 15 | 3 6 2 3 1 Worker 6 | 2 4 . . . Builder 4 | . 4 . . . Tunneler 7 | 5 2 . . . Hauler 2 | . 2 . . . Recycler 14 | 1 2 . 11 . Mechanic 1 | . 1 . . . Operator 1 | . 1 . . . Watcher 2 | . 2 . . . Swarmer 3 | . . 2 1 . Grunt 14 | . 14 . . . Sentry 2 | . . . 2 . Hunter 1 | . . . 1 . Programmer 1 | . . . 1 . Subdweller 10 | . . 10 . . Scrapper 1 | . . . . 1 Best Kill Streak 8 | 4 4 3 8 1 Combat Bots Only 3 | . 2 3 2 1 Max Kills in Single Turn 2 | 1 2 1 2 1 Gunslinging . | . . . . . Exploded . | . . . . . Melee . | . . . . . Uniques/NPCs Destroyed . | . . . . . Combat | -11 -10 -10 -9 -9 -------- Run | Yrd Mat Sub Rec Scr Hostile Shots Fired 146 | . 40 81 1 24 Missed 45 | . 15 25 . 5 Hits 101 | . 25 56 1 19 Projectile 101 | . 25 56 1 19 Critical Strikes 7 | . . 5 . 2 Damage Taken 1937 | . 345 1164 6 422 Core 258 | . 62 110 . 86 Absorbed by Shields 129 | . . . . 129 Redirected to Shielding 19 | . . 19 . . Regen/Repaired (Parts) 289 | . 78 . . 211 Core Remaining (%) 100 | 100 . . . . Volleys Fired 205 | 21 68 82 29 5 Largest 2 | 2 2 2 2 2 Hottest 63 | 40 60 63 63 63 Shots Fired 387 | 42 136 141 58 10 Gun 44 | 42 2 . . . Cannon 343 | . 134 141 58 10 Launcher . | . . . . . Special . | . . . . . Kinetic 387 | 42 136 141 58 10 Thermal . | . . . . . Explosive . | . . . . . Electromagnetic . | . . . . . Robot Hit Streak 19 | 9 5 19 8 4 Robot Miss Streak 6 | 3 5 6 3 2 Penetration Max . | . . . . . Secondary Targets . | . . . . . Shots Hit Robots 217 | 24 77 74 35 7 Core Hits 91 | 11 36 24 18 2 Critical Kills . | . . . . . Critical Parts Destroyed . | . . . . . Critical Strikes 14 | . 8 2 4 . Blast 14 | . 8 2 4 . Melee Attacks . | . . . . . Impact . | . . . . . Slashing . | . . . . . Piercing . | . . . . . Sneak Attacks . | . . . . . Combat Hostiles . | . . . . . Follow-up Attacks . | . . . . . Damage Inflicted 3677 | 245 1382 1137 755 158 Guns 260 | 245 15 . . . Cannons 3417 | . 1367 1137 755 158 Explosions . | . . . . . Melee . | . . . . . Ramming . | . . . . . Kinetic 3677 | 245 1382 1137 755 158 Thermal . | . . . . . Explosive . | . . . . . Electromagnetic . | . . . . . Impact . | . . . . . Slashing . | . . . . . Piercing . | . . . . . Highest Corruption . | . . . . . Average Corruption . | . . . . . Corruption Purged . | . . . . . Corruption Blocked . | . . . . . Overload Shots . | . . . . . Overflow Damage 51 | . 11 . 40 . Projectiles 51 | . 11 . 40 . Explosions . | . . . . . Melee . | . . . . . Knockbacks 44 | . 18 15 10 1 Impact . | . . . . . Kinetic 40 | . 16 14 9 1 Secondary 4 | . 2 1 1 . Self-Inflicted Damage . | . . . . . Shots . | . . . . . Rammed . | . . . . . Targets Rammed . | . . . . . Kicked . | . . . . . Crushed . | . . . . . Highest Temperature 48 | . 48 . . . Average Temperature 14 | . 14 . . . Received Heat Transfer 581 | . 177 195 . 209 Siege Activations . | . . . . . Martial Activations . | . . . . . Shielding Activations . | . . . . . Robots Disrupted . | . . . . . Combat Hostiles . | . . . . . Robots Corrupted . | . . . . . Combat Hostiles . | . . . . . Parts Fried . | . . . . . Impact Corruptions . | . . . . . Robots Melted . | . . . . . Combat Hostiles . | . . . . . Parts Melted 1 | . . 1 . . Heat Transferred . | . . . . . Parts Sabotaged . | . . . . . Parts Stolen . | . . . . . Parts Stripped . | . . . . . Power Chain Reactions . | . . . . . Alert | -11 -10 -10 -9 -9 ------- Run | Yrd Mat Sub Rec Scr Maximum Alert Level . | . . . . . Low Security (%) 100 | 100 100 . 100 . Level 1 . | . . . . . Level 2 . | . . . . . Level 3 . | . . . . . Level 4 . | . . . . . Level 5 . | . . . . . High Security . | . . . . . Max Security . | . . . . . Peak Influence 129 | 10 129 . 103 . Initial . | . . . . . Average 52 | 3 66 . 35 . Influence Increases 1010 | 40 558 70 342 . Destroy 0b10 Robot/C 400 | . 280 40 80 . Destroy 0b10 Robot/NC 190 | 40 90 . 60 . Destroy Leader 88 | . 88 . . . Allied During Kill 5 | . . . 5 . Successful Hack 47 | . 19 . 28 . Select Force Hacks 180 | . 30 . 150 . Disable Machine 30 | . 15 . 15 . Destroy Structure 10 | . 6 . 4 . Lose Combat Pursuer 60 | . 30 30 . . Influence Decreases 1010 | 40 503 125 342 . Entered New Map 27 | . . 27 . . Time Decay 949 | 40 503 98 308 . Purge Threat 34 | . . . 34 . Squads Dispatched 4 | . 4 . . . Investigation 3 | . 3 . . . Extermination . | . . . . . Reinforcement 1 | . 1 . . . Assault . | . . . . . Garrison . | . . . . . Intercept . | . . . . . Searches Triggered . | . . . . . Construction Impeded . | . . . . . Haulers Reinforced . | . . . . . Active Scanning Responses . | . . . . . Cargo Convoy Interrupts . | . . . . . Stealth | -11 -10 -10 -9 -9 --------- Run | Yrd Mat Sub Rec Scr Distress Signals 2 | . 1 . 1 . Communications Jammed . | . . . . . Distress Signals . | . . . . . Times Spotted 63 | . 23 25 2 13 Peak Tracking Total 10 | . 3 6 1 10 Tactical Retreats 3 | . 2 1 . . Traps | -11 -10 -10 -9 -9 ------- Run | Yrd Mat Sub Rec Scr Traps Triggered 4 | . 3 1 . . Indirectly . | . . . . . Trap Hack Attempts . | . . . . . Triggered . | . . . . . Disarmed . | . . . . . Reprogrammed . | . . . . . Reused 1 | . . . . 1 Traps Extracted . | . . . . . Installed 1 | . . . . 1 Triggered . | . . . . . Most Traps Carried 1 | . . 1 . 1 Machines | -11 -10 -10 -9 -9 ---------- Run | Yrd Mat Sub Rec Scr Machines Disabled 3 | . 1 1 1 . Max in Single Turn 1 | . 1 1 1 . Machines Repaired . | . . . . . Machines Dismantled . | . . . . . Machines Sabotaged . | . . . . . Overloaded Fab Kills . | . . . . . Hacking | -11 -10 -10 -9 -9 --------- Run | Yrd Mat Sub Rec Scr Machines Accessed 24 | . 9 1 11 3 Terminals 13 | . 7 . 6 . Fabricators . | . . . . . Repair Stations 1 | . 1 . . . Recycling Units 6 | . 1 . 5 . Scanalyzers . | . . . . . Garrison Access . | . . . . . Total Hacks 74 | . 24 9 29 12 Successful 54 | . 17 9 16 12 Failed 19 | . 7 . 12 . Catastrophic 5 | . 1 . 4 . Database Lockouts 1 | . . . 1 . Manual 36 | . 19 . 17 . Terminals 43 | . 20 . 23 . Fabricators . | . . . . . Repair Stations 2 | . 2 . . . Recycling Units 8 | . 2 . 6 . Scanalyzers . | . . . . . Garrison Access . | . . . . . Terminal Hacks 37 | . 8 9 8 12 Record 19 | . . 8 . 11 Part Schematic 3 | . . . 3 . Robot Schematic 1 | . . . 1 . Robot Analysis 4 | . 4 . . . Prototype ID Bank 4 | . 2 . 2 . Terminal Index 1 | . 1 . . . Alert Level 1 | . . . 1 . Unreport Threat 1 | . . . 1 . Locate Traps 1 | . 1 . . . Proto ID Catalog 2 | . . 1 . 1 Fabricator Hacks . | . . . . . Repair Station Hacks 2 | . 2 . . . Scan Component 1 | . 1 . . . Repair 1 | . 1 . . . Recycling Unit Hacks . | . . . . . Scanalyzer . | . . . . . Garrison Access Hacks . | . . . . . Unauthorized Hacks 15 | . 7 . 8 . Terminals 9 | . 6 . 3 . Botnet 9 | . 6 . 3 . Fabricators . | . . . . . Repair Stations . | . . . . . Recycling Units 6 | . 1 . 5 . Tunnel 6 | . 1 . 5 . Scanalyzers . | . . . . . Garrison Access . | . . . . . Data Cores Recovered 1 | . 1 . . . Used . | . . . . . Hacking Detections 15 | . 8 . 7 . Full Trace Events 3 | . 1 . 2 . Feedback Events . | . . . . . Feedback Blocked . | . . . . . Robot Schematics Acquired 1 | . . . 1 . Robots Built . | . . . . . Authchips . | . . . . . Time . | . . . . . Total Robot Build Rating . | . . . . . Part Schematics Acquired 3 | . . . 3 . Parts Built . | . . . . . Authchips . | . . . . . Time . | . . . . . Total Part Build Rating . | . . . . . Parts Repaired 1 | . 1 . . . Time 26 | . 26 . . . Parts Recycled . | . . . . . Recycled Matter . | . . . . . Retrieved Matter . | . . . . . Retrieved Components . | . . . . . Parts Scanalyzed . | . . . . . Part Schematics Acquired . | . . . . . Parts Damaged . | . . . . . Bothacking | -11 -10 -10 -9 -9 ------------ Run | Yrd Mat Sub Rec Scr Used RIF Installer . | . . . . . Robots Hacked . | . . . . . Non-combat . | . . . . . Combat . | . . . . . Robot Hacks Applied . | . . . . . Relay Couplers Released . | . . . . . Fabnet Peak Effective % . | . . . . . Robots Rewired 5 | . . . 5 . Allies Hacked . | . . . . . Hacks Repelled . | . . . . . Allies | -11 -10 -10 -9 -9 -------- Run | Yrd Mat Sub Rec Scr Total Allies 5 | . . . 5 . Largest Group 5 | . . . 5 4 Highest-Rated Group 86 | . . . 86 65 Highest-Rated Ally 27 | . . . 27 27 Total Orders . | . . . . . Ally Attacks 8 | . . . . 8 Total Damage 87 | . . . . 87 Kills 1 | . . . . 1 Allies Corrupted . | . . . . . Allies Melted 1 | . . . . 1 Intel | -11 -10 -10 -9 -9 ------- Run | Yrd Mat Sub Rec Scr Active Infowar (turns) 6688 | 89 1424 1975 849 2351 Terrain 1272 | 89 631 . . 552 Structural 4857 | . 793 1975 849 1240 Decoding 559 | . . . . 559 Robot Analysis Total 4 | . 4 . . . Derelict Logs Recovered 7 | . . 2 . 5 Drone Launches . | . . . . . Drone Recoveries . | . . . . . Exploration | -11 -10 -10 -9 -9 ------------- Run | Yrd Mat Sub Rec Scr Turns Passed 7120 | 139 1424 2231 849 2477 Spaces Moved 4892 | 73 1010 1665 508 1636 Core 5 | 3 . 2 . . Treads . | . . . . . Legs 2446 | . . 302 508 1636 Wheels 2441 | 70 1010 1361 . . Hover . | . . . . . Flight . | . . . . . Fastest Speed 50 | 50 80 110 130 130 Average Speed 120 | 84 109 117 130 130 Slowest Speed 900 | 90 110 900 130 130 Overloaded Moves . | . . . . . Propulsion Burnouts . | . . . . . Robots Hopped . | . . . . . Potential Cave-ins . | . . . . . Cave-ins Triggered . | . . . . . Exploration Rate (%) 69 | 4 95 82 90 78 Regions Visited 4 Branch Regions 3 Pre-discovered Areas 8 | . 1 1 5 1 Known Exits Taken . | . . . . . Unknown Exits Taken 4 | 1 1 1 1 . Scrap Searched 11 | . . 6 . 5 Spaces Dug . | . . . . . Terrain Destroyed 3 | . . . 3 . Melee . | . . . . . Projectile 3 | . . . 3 . AOE . | . . . . . Terrain Rammed . | . . . . . Walls Destroyed . | . . . . . Machines Disabled . | . . . . . Actions | -11 -10 -10 -9 -9 --------- Run | Yrd Mat Sub Rec Scr Total 5730 | 109 1202 1800 639 1980 Wait 420 | . 68 13 33 306 Move 4888 | 72 1009 1664 507 1636 Hop . | . . . . . Pick Up 53 | 7 24 10 1 11 Fast Attach 15 | 7 2 3 . 3 Attach 8 | . . 7 . 1 Detach 4 | . 1 2 . 1 Swap 23 | 1 10 9 . 3 Drop 45 | 1 20 10 1 13 Fire 205 | 21 68 82 29 5 Melee . | . . . . . Ram . | . . . . . Kick . | . . . . . Crush . | . . . . . Escape Stasis . | . . . . . Rewire 68 | . . . 68 . Trap 1 | . . . . 1 Miscellaneous . | . . . . . Route ------- -11/Scrapyard -10/Materials (discovered 5 exits: [*Mat x3] / [*Min] / *Sub) -10/Subcaves (discovered 3 exits: [*Mat x2] / *Rec) -9/Recycling (discovered 2 exits: [*Fac] / *Scr) -9/Scraptown (discovered 2 exits: [*Fac x2]) History --------- Turn | Location | Event 12 | -11/Scrapyard | Discovered new exit (range 15) 140 | -11/Scrapyard | Entered Materials 304 | -10/Materials | Build established: Mutant 518 | -10/Materials | Discovered new exit (range 16) 754 | -10/Materials | Discovered new exit (range 16) 933 | -10/Materials | Discovered new exit (range 16) 1143 | -10/Materials | Discovered new exit (range 15) 1246 | -10/Materials | Repaired Lgt. Cannon 1388 | -10/Materials | Discovered new exit (range 10) 1564 | -10/Materials | Entered Subcaves 1579 | -10/Subcaves | Learned location of Storage (-9) 1598 | -10/Subcaves | A swath of the cavern ceiling suddenly collapsed 1621 | -10/Subcaves | Discovered new exit (range 11) 1726 | -10/Subcaves | Ambushed by swarm of Subdwellers 1794 | -10/Subcaves | Disturbed a concealed Subdweller 2059 | -10/Subcaves | Discovered new exit (range 15) 2366 | -10/Subcaves | A swath of the cavern ceiling suddenly collapsed 2394 | -10/Subcaves | Discovered new exit (range 6) 2545 | -10/Subcaves | Core integrity fell below 50% 2566 | -10/Subcaves | Lost 6 parts (1p2n1u2w) 3371 | -10/Subcaves | Visited 4L-MR0's lab 3400 | -10/Subcaves | Found Cargo Legs 3402 | -10/Subcaves | Attached Cargo Legs, gained temporary slots: Utility x2 3795 | -10/Subcaves | Entered Recycling 4228 | -9/Recycling | Discovered new exit (range 7) 4579 | -9/Recycling | Scanned before Scraplab entrance 4618 | -9/Recycling | Discovered new exit (range 11) 4621 | -9/Recycling | Entered Scraplab 4644 | -9/Recycling | Entered Scraptown 4644 | -9/Scraptown | Accompanied by 4 allies 4686 | -9/Scraptown | Build established: Commander-Mutant 4791 | -9/Scraptown | Scanned Subdweller tech in exchange for log data 4800 | -9/Scraptown | Learned Factory non-interactive machine intel 4802 | -9/Scraptown | Learned Research non-interactive machine intel 4803 | -9/Scraptown | Learned location of 1 exit from Factory 4804 | -9/Scraptown | Learned Factory security intel 4805 | -9/Scraptown | Learned Factory interactive machine intel 4883 | -9/Scraptown | Visited UFD Registry 4883 | -9/Scraptown | Registered with UFD as "Toolmech" 4896 | -9/Scraptown | Visited Spacefarers 4971 | -9/Scraptown | Discovered new exit (range 11) 4998 | -9/Scraptown | Guru changed UFD alias to "Gravframe" 5169 | -9/Scraptown | Heard Great Nut preacher, LISTEN AND RECITE! 5268 | -9/Scraptown | Visited CR-KLE's Repair Center 5281 | -9/Scraptown | Visited Assassins FH 5461 | -9/Scraptown | Visited Cartography Club 5507 | -9/Scraptown | Visited Junk Repository 5546 | -9/Scraptown | Visited Infowarlord's Domain 5570 | -9/Scraptown | Visited Scrap Suit Storage 5587 | -9/Scraptown | Found Scrap Suit 5609 | -9/Scraptown | Visited Derelict Rescue Squad 5618 | -9/Scraptown | Found DRS Beacon 5708 | -9/Scraptown | Visited Science Guys 5784 | -9/Scraptown | Delivered Scrap Shield to a Scientist 6274 | -9/Scraptown | Visited A0-MCA Data Center 6317 | -9/Scraptown | Visited DA-N13 Charitable Foundation 6322 | -9/Scraptown | Found DCF Scrap (26 items) 6624 | -9/Scraptown | Visited Junk Cannon Lab 6720 | -9/Scraptown | Given an A- rating by A0-MCA 6725 | -9/Scraptown | Found A0-MCA's Component Scanner 6830 | -9/Scraptown | CR-KLE repaired 5 parts 6865 | -9/Scraptown | Visited The Evicted 7017 | -9/Scraptown | Met Optimus 7017 | -9/Scraptown | Accepted into 0bPrime 7070 | -9/Scraptown | Civil war broke out across Scraptown 7099 | -9/Scraptown | Discovered new exit (range 13) 7100 | -9/Scraptown | Core integrity fell below 20% 7121 | -9/Scraptown | Destroyed by FQ-ACX(j) with Overtuned Pulse Rifle Last Messages --------------- 07099_ C9-MKO(j) triggered Vortex Trap. 07099_ A wave of accelerated entropy washes over the area. 07099_ C9-MKO(j) destroyed. 07099_ TO-T1O(g) destroyed. 07099_ QK-TLK(j) destroyed. 07099_ EXIT=FOUND 07100_ 3S-283(j) cannibalizes Ovr. Titanium Leg to repair Ovr. Titanium Leg. 07101_ Critical hit (Burn: +38). 07106_ 4R-25P(j) suffers critical hit (Destroy). 07106_ 4R-25P(j) destroyed. 07107_ NW-VVA(E) destroyed. 07107_ 3S-283(j) suffers critical hit (Burn). 07108_ Battle Cannon destroyed. 07110_ EH-8RM(j) destroyed. 07110_ 3S-283(j) destroyed. 07111_ GG-TLM(j) destroyed. 07114_ XG-P2I(j) knocked back. 07119_ Rogue 2a destroyed. Map ----- +----------------------------------------------------+ | | | | | ?????????????????????????????????????????????????? | | ?????????????????????????????????????????????????? | | ?????????????????????????????????????????????????? | | ?????????????????????????????????????????????????? | | ?????????????????????????????????????????????????? | | ?????????????????????????????????????????????????? | | ?????????????????????????????????????????????????? | | ?????????????????????????????????????????????????? | | ?????????????????????????????????????????????????? | | ?????????????????????????????????????????????????? | | ?????????????????????????????????????????????????? | | ?????????????????????????????????????????????????? | | ?????????????????????#######??????"??????????????? | | ???????????????????###;;;; ###???%"#?????????????? | | ??????????????#""??# ;; ;; #??%<=#?????????????? | | ??????????"" ##!!"##;; ! ;[=###[!%#?????????????? | | ??????????? *=!%!!j*=!=[??????????????? | | ???????????????? [!% [j!j!????????????????? | | ??????????????????#;;; %!;%;!%[?????????????????? | | ??????????????????# ;; %;= #??????????????????? | | ??????????????????# ; x;;;;;###????????????????? | | ???????????????????# ; ; """#????????????????? | | ?????????????####### ; ; """#????????????????? | | ?????????????#########; %@ " "#????????????????? | | ?????????????## ### ;"" "#????????????????? | | ############### ### #"" "#????????????????? | | ############### ### i#"" "#????????????????? | | ## !# !!#==#### ### #" "#????????????????? | | ## !# ] #*!#### ### #""" |"###"##???????????? | | ## # # #### ### [# #???????????? | | ## #### ###*%# #???????????? | | ## #### ### =# #???????????? | | ##### ########### ##### ## ##########???????????? | | ##### ########### ##### ## ############?????????? | | """"" """"""""""" """" "" "###########?????????? | | "## #"""""# ?????????? | | "## !!! # #??????? | | *% "## ##"##??????? | | ! "## X" ##??????? | | =% ##??????? | | """"""""""""""""""""""" "## ##??????? | | """"""""""""""""""""""" "## ! !##??????? | | ### ################"" "## #"""""#""###?????? | | ###########"" "###############?????? | | X"##??????##"" "## """"""""##?????? | | "" "" ###????####"" "## " " " "##?????? | | "" "" X"##########"" "## ""##?????? | | " " ######### #"" "## ! &"##?????? | +----------------------------------------------------+ Best States ------------- Heat Dissipation 47 Energy Generation 15 Energy Capacity 250 Matter Stores 300 Matter Capacity 300 Sight Range 16 Terrain Scan Range 16 Terrain Scan Density 10 Armor Coverage 150 Propulsion Shielding 33 Evasion (%) 55 Item Schematics ----------------- Weapon Cycler | -9/Recycling | Hacked Hvy. Armor Plating | -9/Recycling | Hacked Imp. Propulsion Shielding | -9/Recycling | Hacked Robot Schematics ------------------ O-16 Technician | -9/Recycling | Hacked Fabricated ------------ Nothing Repaired ---------- Lgt. Cannon | 35% | -10/Materials Alien Tech Used ----------------- None Achievements -------------- None Challenges ------------ None Game ------ Seed WeightLightpackBlaster Manual? 0 Play Time 00:45:39 Cumulative 237.1 hours Start 2025.05.25 @ 18:09:39 End 2025.05.25 @ 18:55:21 Sessions 1 Manual Loads 0 Difficulty Rogue Special Mode None Game No. 142 Rogue 142 Adventurer 0 Explorer 0 Win Type - Total 3 Types 1/0/1/1/0/0/0/0/0/0 Lore% 78 Gallery% 64 Achievement% 63 Wizard Run 0 Options --------- Layout 2 ASCII 0 Keyboard 1 Movement Vi Keybinds 0 Fullscreen 1 Font 16/SmallcapsGlow Map View 55x47 Zoom Use 0% Tactical HUD 1 Map Filters NONE Filters NONE Steam 0 RUN: 3a307371-001d-45aa-bfc6-6170b93e7b76